{"text_format":"1","workbook":"xlsx","n_sheets":7,"sheets":["Quick Help","Revision History","Announcement","CodeCollab","CommentsSheet","Allowed Values","Sheet1"],"not_rendered":{"charts":0,"images":0,"macros":1,"external_links":1,"defined_names":15,"comments":2,"pivot_tables":0},"unopened":[],"bounds":{"document_bytes":16777216,"sheet_cells":100000,"rows_first":2000,"rows_last":500,"rows_between":2000,"halvings":0,"cell_chars":16384,"cell_head_chars":4096},"cells_cut":0,"cells_raw":0,"read":"whole","date_system":"1900"}

{"sheet":"Quick Help","index":0,"n_rows":26,"n_cols":2,"rows_kept":26,"cut":false,"hidden":true,"merged":[]}
["GPS III Peer Review Quick Help"]
[]
["The GPS III Peer Review Form consists of 4 worksheets:"]
["1.","This Quick Help guide"]
["2.","The Announcement sheet which is used to define not only the peer review session, \nbut also the work product being rviewed.  Many of the fields are used to categorize the results of the session and track the quality level of the work product and the effectiveness of the review."]
["3.","The CommentsSheet is used to record any problems you encounter while reviewing the work product.  Your comments will be combined with the other reviewer's prior to the peer review meeting.  The author will use this same form to track rework and closure of each fnding."]
["4.","Allowed Values is a hidden worksheet that drives all of the pull-down fields and content validation on the forms.  DO NOT change anything on this sheet.  If you need to have a different field option than what is supplied, please contact your CM Manager."]
[]
["Initialization"]
["u","Always go back to the master Peer Review folder on the WGC to get a new peer Review form.  At times the allowed values or the macros may be updated; and you will miss these upgrades if you keep a local copy."]
["u","Check the Peer review Log file for the next available Peer Review ID.  Reserve the log and sign-up for the numbers you need."]
["u","The syntax for your Peer Review ID is CC-EEE-9999, where:\nCC    = company (LM,GD,IT)\nEEE  = Element (GPS,ANT,BUS,COM,NAV,DBS,SIM) , and\n9999 = one up number from the log."]
[]
["Macro Buttons"]
[null,"PLEASE ensure that you use the macro buttons to Add new rows to the Announcement Sheet.  This will ensure that all formatting is copied correctly and that the embedded equations are not corrupted."]
[]
["Syntax of the Form"]
["The form consists of mandatory and optional fields."]
[null,"Each mandatory field is identified with a * Label that appears in red with an asterisk."]
["Cell backgrounds:"]
["u","At times the background of a cell will change to yellow   indicating that the contents of the field will be required before completing the rview "]
["u","If the cell color turns to   red      then the contents are in error, and must be corrected."]
["u","A cell can also change to                indicating that this field is no longer applicable."]
["u","Any field whose content is calculated, appears in "]
["u","The most important cell is the    orange  Security Banner in row 3 of the Announcement Sheet.  This cell must be filled out for all reviews and will be duplicated to the header and footer of each form."]
["u","The initial value of any pull-down field is set to             in order to identify these fields and to ensure that a correct field value is supplied for the review."]

{"sheet":"Revision History","index":1,"n_rows":32,"n_cols":3,"rows_kept":32,"cut":false,"hidden":true,"merged":[]}
["Date","Change"]
[20080101,"Initial release"]
[20080130,"Modified data validation settings on review date fields to be \"Any Value\" with cell format of dd-mmm-yy"]
[null,"Corrected Added a mising : to Col_M exception handler in Consolidate Comments macro"]
[null,"Goto Col_E exception should have been Col_G in the consolidate macro"]
[null,"Corrected various typos in Comments"]
[20080204,"Announcement: changed manager/tech Lead to \"Technical Lead\" and mage role optional"]
[20080207,"Changed SSSI to SSIS"]
[null,"Added values to IPT list: PMO, LOS, HPE, Customer"]
[null,"Added \"Yes - TBx\" as a closure code"]
[20080212,"Corrected macro to put reviewer's name in description cell - off by 1 column…"]
[20080220,"Added missing criteria to compute Save/Escapes"]
[20080304,"Corrected pulldowns for Defect/Reco/Action - added Trivial"]
[null,"deleted Trivial from Escape/Save cell"]
[null,"added a commetn to Defect/reco header"]
[null,"added a little more conditional formatting colo0rs"]
[null,"added Yes - TBx as an accept change field"]
[20080319,"Corrected the Add macroo's calculation of total participants"]
[20080529,"corrected count equation for number of ITRs, number of sessions"]
[null,"corrected conditional formatting on material Available field"]
[20080930,"Added macro to run before printing to set the classifiaction banner on the Comments Sheet to the value on the announcement sheet"]
[null,"Added Sv as an IPT in the reviewer's area"]
[null,"Fixed calculation for Total hours for prep, attendance and expected prep to account for added reviewers"]
[null,"Fixed add macros for additional sessions and reviewers to add the items in the correct positions"]
[20081117,"Corrected count of verified defects and recos"]
[null,"Also made Implemented Solution field required when the author agrees to fix, write a DR aor write a TBx"]
[20081205,"Added PSICA as a role"]
[null,"Also set the %reduction for the Comments Sheet to 85% so that it prints all columns on 1 page."]
[20100112,"Implement request for change to Peer Review Form as documented in DR #134"]
[null,null,"Add ICD Document and ICD Drawings as new product types"]
[null,null,"Change prompt on Announcement from Diagrams to Drawing/ICD/Diagrams"]
[20110221,"Differentiate between Scripts and Code as separate types."]

{"sheet":"Announcement","index":2,"n_rows":74,"n_cols":60,"rows_kept":74,"cut":false,"hidden":false,"merged":[[9,1,9,2],[11,1,11,2],[44,1,44,2],[11,6,11,7],[43,1,43,2],[15,2,15,8],[18,1,18,3],[39,0,39,8],[42,1,42,2],[14,2,14,8],[2,0,2,8],[5,0,5,8],[49,1,49,2],[50,1,50,2],[19,1,19,3],[27,0,27,8],[7,6,7,7],[8,6,8,7],[12,1,12,8],[4,1,4,2],[7,1,7,2],[8,1,8,2],[16,2,16,8],[9,6,9,7],[45,1,45,2],[46,1,46,2],[72,0,72,8],[70,2,70,8],[47,1,47,2],[48,1,48,2],[51,1,51,2],[62,0,62,8],[64,1,64,2],[60,1,60,3],[57,1,57,3],[59,1,59,3],[58,1,58,3],[56,1,56,3],[52,1,52,2]]}
["Review Type ","* Meeting Type ","Review Disposition ","* Review ID ","* Review Title ","If Re-Review, Original Review ID ","* Program Team ","* Element ","* Upcoming Milestone ",null,"* Block "," * Product CM ID ","* Product Type ","Units: ","Pages: New","Pages: Mod","Pages: Reuse","Pages: Autogen","Diagrams: New","Diagrams: Mod","Diagrams: Reuse","Diagrams: Autogen","Req: New","Req: Mod","Req: Reuse","Req: Autogen","SLOC: New","SLOC: Mod","SLOC: Reuse","SLOC: Autogen","Number ITRs ","Days Available ","Material Available","* Review Session 1 ","Number of Review Sessions","Duration","Manager / Tech Lead","Moderator","Author","Recorder","Total Planned Prep Hours","Total Actual Prep Hours","Number People Prep","Total Time in Meeting","Total Peopl Attended","Rework Hours","verification Hours","Defects reported","Defects Opened","Defects Fixed","Defects Verified","Recos reported","Recos Opened","Recos Fixed","Recos Verified","Saves","Escapes","Record Locked","Closure Date","Days to Close"]
[{"$f":"B5","v":"Peer Review"},{"$f":"B8","v":"Initial"},{"$f":"B65","v":"Accept"},{"$f":"B12","v":"IT-NAV-2951"},{"$f":"B13","v":"TSW SIQT Dry Run Test Results Review  - TC1 - TC 5"},{"$f":"G12","v":0},{"$f":"B9","v":"SV-Nav"},{"$f":"B10","v":"Navigation"},{"$f":"G8","v":"TRR"},{"$f":"G9","v":"SIQT"},{"$f":"G10","v":"IIIA"},{"$f":"B19","v":"STD1620155 - Appen. 7 TP Clear Case Label "},{"$f":"B20","v":"Software Test Description (STD)"},{"$f":"F20","v":"Pages/Diagrams"},{"$f":"B23","v":" "},{"$f":"C23","v":"N/A"},{"$f":"D23","v":"N/A"},{"$f":"E23","v":"N/A"},{"$f":"B24","v":"N/A"},{"$f":"C24","v":"N/A"},{"$f":"D24","v":"N/A"},{"$f":"E24","v":"N/A"},{"$f":"B25","v":"N/A"},{"$f":"C25","v":"N/A"},{"$f":"D25","v":"N/A"},{"$f":"E25","v":"N/A"},{"$f":"B26","v":"N/A"},{"$f":"C26","v":"N/A"},{"$f":"D26","v":"N/A"},{"$f":"E26","v":"N/A"},{"$f":"E31","v":1},{"$f":"E33","v":0},{"$f":"B33","v":"00:00:00"},{"$f":"B36","v":"00:00:00"},{"$f":"D55","v":0},{"$f":"H38","v":0},{"$f":"B44","v":"Roger Masotti"},{"$f":"B45","v":"Ken Adam"},{"$f":"B46","v":"Multiple"},{"$f":"B47","v":"Simone Melnick"},{"$f":"G54","v":0},{"$f":"H54","v":0},{"$f":"H55","v":0},{"$f":"I54","v":0},{"$f":"I55","v":0},{"$f":"C68","v":200},{"$f":"C69","v":40},{"$f":"CommentsSheet!G2","v":0},{"$f":"CommentsSheet!G3","v":0},{"$f":"CommentsSheet!G4","v":0},{"$f":"CommentsSheet!G5","v":0},{"$f":"CommentsSheet!H2","v":0},{"$f":"CommentsSheet!H3","v":0},{"$f":"CommentsSheet!H4","v":0},{"$f":"CommentsSheet!H5","v":0},{"$f":"CommentsSheet!J4","v":0},{"$f":"CommentsSheet!J5","v":0},{"$f":"IF(C2=\"\",\"\",IF(OR(C2=\"Accept\",C2=\"Conditional\"),\"Locked\",\"\"))","v":"Locked"},{"$f":"IF(E69=\"\",\"\",E69)","v":""},{"$f":"IF(BG2=\"\",\"\",BG2-AH2)","v":""}]
["< Insert Classification Banner Here >"]
[null,null,"GPS III PEER REVIEW REPORT",null,null,null,null,null,20100112]
["Review Type ","Peer Review"]
["GENERAL INFORMATION"]
[]
["* Meeting Type ","Initial",null,null,null,"* Upcoming Milestone ","TRR"]
["* Program Team ","SV-Nav",null,null,null,"* Development Phase ","SIQT"]
["* Element ","Navigation",null,null,null,"* Block ","IIIA"]
[]
["* Review ID ","IT-NAV-2951",null,null,null,"If Re-Review, Original Review ID "]
["* Review Title ","TSW SIQT Dry Run Test Results Review  - TC1 - TC 5"]
[]
[null,"* Location of Review Materials "]
[null,"Reference Materials ","B030 Software Test Description - Appendix 7 - TSW SIQT Test Procedures "]
[null,"* Product Checklist ","None"]
[]
[" * Product CM ID ","STD1620155 - Appen. 7 TP Clear Case Label "]
["* Product Type ","Software Test Description (STD)",null,null,"Units: ",{"$f":"VLOOKUP(B20,'Allowed Values'!N:P,3,FALSE)","v":"Pages/Diagrams"}]
[]
["Product Size: ","New","Modified","Reuse","AutoGen","Total"]
["Pages"," ","N/A","N/A","N/A",{"$f":"SUM(B23:E23)","v":0}]
["Drawing/ICD/Diagrams","N/A","N/A","N/A","N/A",{"$f":"SUM(B24:E24)","v":0}]
["Requirements","N/A","N/A","N/A","N/A",{"$f":"SUM(B25:E25)","v":0}]
["SLOC","N/A","N/A","N/A","N/A",{"$f":"SUM(B26:E26)","v":0}]
[]
["MEETING SCHEDULE"]
[]
["Meeting","Date"]
["Internal Tech Rev 1","2014-02-03",null,"Number ITRs ",{"$f":"IF((COUNTIF(B31:B32,\">0\"))>0,COUNTIF(B31:B32,\">0\"),0)","v":1}]
["Internal Tech Rev 2"]
["Material Available",null,null,"Days Available ",{"$f":"IF(OR(B33=\"\",B36=\"\"),0,B36-B33)","v":0}]
[]
["Meeting","Date","Start Time","End Time","Time Zone","Location","Dial In","Duration"]
["* Review Session 1 ",null,null,null,null,null,null,{"$f":"IF(AND(B36<>\"\",C36<>\"\",D36<>\"\"),(D36-C36)*24,\"\")","v":""}]
["  Review Session 2 ",null,null,null,null,null,null,{"$f":"IF(AND(B37<>\"\",C37<>\"\",D37<>\"\"),(D37-C37)*24,\"\")","v":""}]
[null,null,null,null,null,null,"Total: ",{"$f":"SUM(H36:H37)","v":0}]
[]
["MEETING INVITATION AND ATTENDANCE"]
[]
["Attendees:"]
["Role","* Name ",null,"* IPT","Phone","Mandatory","* Planned Prep (Hrs)","Actual Prep (Hrs)","Time in Meeting"]
["Technical Lead","Roger Masotti"]
["Moderator","Ken Adam",null,null,null,"Yes"]
["Author","Multiple",null,null,null,"Yes"]
["Recorder","Simone Melnick",null,null,null,"Yes"]
["Presenter/Reader","Multiple "]
["PSICA Reviewer","Rose Osborne",null,null,null,"No"]
["Reviewer","Joanne Tagami (Aerospace)",null,"Customer"]
["Reviewer","Antonia Cheung (Aerospace)",null,"Customer"]
["Reviewer","Sara Gurunathan (LMCO)",null,"Customer"]
["Reviewer"," "]
[null,null,null,null,null,"Total Hours: ",{"$f":"SUM(G44:G53)","v":0},{"$f":"SUM(H44:H53)","v":0},{"$f":"SUM(I44:I53)","v":0}]
[null,null,"Number of Review Sessions",{"$f":"IF(H38>0,COUNTIF(H36:H38,\">0\")-1,0)","v":0},null,"Total Attendees:",null,{"$f":"COUNTIF(H44:H53,\">0\")","v":0},{"$f":"COUNTIF(I44:I53,\">0\")","v":0}]
[]
["Role","* Name ",null,null,"* Org","Phone"]
["QE","Cheryl Hodge",null,null,"Exelis"]
["QE","Ken Breem",null,null,"LM"]
["Observer"]
["Observer"]
[]
["Peer review REWORK AND CERTIFICATION"]
[]
["Review Disposition ","Accept"]
[]
["Rework  ","Estimated\nHours","* Actual\nHours","Estimated Date","* Actual Date","* initials"]
["Author Rework Effort ",80,200,"2014-02-21",null,"HY MH"]
["Verification Effort ",40,40,"2014-02-22",null,"AP KA"]
[]
[null,"* Location of Rework Materials "]
[]
[{"$f":"A3","v":"< Insert Classification Banner Here >"}]
["LastRow"]

{"sheet":"CodeCollab","index":3,"n_rows":0,"n_cols":0,"rows_kept":0,"cut":false,"hidden":true,"merged":[]}

{"sheet":"CommentsSheet","index":4,"n_rows":64,"n_cols":18,"rows_kept":64,"cut":false,"hidden":false,"merged":[[6,0,6,5],[6,9,6,12]]}
[null,null,null,"GPS III PEER REVIEW COMMENTS",null,null,"Defects","Recos",null,null,null,null,null,null,{"$f":"IF(ISERROR(CodeCollab!A1),0,COUNTIF(CodeCollab!A:H,\"Save\"))","v":0},{"$f":"IF(ISERROR(CodeCollab!A1),0,COUNTIF(CodeCollab!A:H,\"Escape\"))","v":0},{"$f":"IF(ISERROR(CodeCollab!A1),0,COUNTIF(CodeCollab!A:H,\"Trivial\"))","v":0}]
[null,null,null,null,null,"Reported:",{"$f":"DCOUNTA($G$8:$G1034,1,$P$2:$P$3) +O1+P1","v":0},{"$f":"DCOUNTA($G$8:$G1034,1,$P$6:$P$7)+Q1","v":0},null,null,null,null,null,null,"Defect\nResolved",{"$f":"G8","v":"Defect /\nReco /\nAction /\nTrivial"},"Agree to Change ","Implemented Solution"]
[null,null,"Review ID ",{"$f":"IF(Announcement!B12=\"\",\"\",Announcement!B12)","v":"IT-NAV-2951"},null,"TOTALS:     Opened:",{"$f":"DCOUNTA($G$8:$H$1034,1,$P$2:$Q$4)+O1+P1","v":0},{"$f":"DCOUNTA($G$8:$H$1034,1,$P$6:$Q$8)+Q1","v":0},null,null,null,null,null,null,"Yes","Defect","Yes - Fix","<>"]
[null,null,"* Reviewer's Name ",null,null,"Fixed:",{"$f":"DCOUNTA($G$8:$I$1034,1,$P$2:$R$4)+O1+P1","v":0},{"$f":"DCOUNTA($G$8:$I$1034,1,$P$6:$R$8)+Q1","v":0},"   Saves ",{"$f":"DCOUNTA($J$8:$J$1034,1,$O$10:$O$32)+O1","v":0},null,null,null,null,"Yes","Defect","Yes - DR","<>"]
[null,null,"* Reviewer's Phone ",null,null,"Verified:",{"$f":"DCOUNTA($G$8:$N$1034,1,$O$2:$R$4)+O1+P1","v":0},{"$f":"DCOUNTA($G$8:$N$1034,1,$O$6:$R$8)+Q1","v":0},"   Escapes ",{"$f":"DCOUNTA($J$8:$J$1034,1,$P$10:$P$32)+P1","v":0}]
[null,null,null,null,null,null,null,null,null,null,null,null,null,null,"Defect\nResolved",{"$f":"P2","v":"Defect /\nReco /\nAction /\nTrivial"},"Agree to Change ","Implemented Solution"]
["Reviewer's Comments",null,null,null,null,null,null,null,"Author Only","Categorization",null,null,null,"Moderator","Yes","Reco","Yes - Fix","<>"]
["Item #","Location in Product\n\nPrimary","Secondary","Comment","Original Text\n(optional)","Recommended Resolution\n (optional)","Defect /\nReco /\nAction /\nTrivial","Agree to Change ","Implemented Solution","Save/\nEscape","If Escape,\nPHASE defect was introduced","If Escape,\nPRODUCT defect was introduced","Causal \nCode","Defect\nResolved","Yes","Reco","Yes - DR","<>"]
[1,"7.1.1.1.5",null,"(JT) Concerns Carried Over From SWIT (Not Completely Answered in Reference File):\nTC01, 7.1.1.1.5 \nRegarding the verification of NPE_TSW_SRS-2736\nThe NPE TSW shall perform a state-of-health test to assure that the entire system is ready for test by verifying communication interfaces and local disk storage space.\nIt is not clear how the above requirement gets verified with checking the “LBCRHeartbeat” message in a GUI window.  There are probably many more state-of-health checks that are needed to assure that the entire system is ready for test.\n",null,"Requirement was re worded with Customers sanction.Test procedures should be sufficient as is. Waiting for RIGOR report from Customer."]
[2,"7.1.1.1.5",null,"(JT) Concerns Carried Over From SWIT (Not Completely Answered in Reference File):\nTC01, 7.1.1.1.5 \nRegarding the verification of NPE_TSW_SRS-1341:\nThe NPE TSW shall record all current revision information for all test scripts, TSW SI software current revision information, MDU flight software current revision information, with all test results.\nIt is not clear where the NPE TSW records all revision information for all test scripts, all TSW SI software current revision information, along with all test results.\nThere is a report (ScriptResults____.xls) that contains the MDU flight software current revision information only.  However, it is not clear where the NPE TSW records the other information per NPE_TSW_SRS-1341:\no all current revision information for all test scripts\no all TSW SI software current revision information\no all test results (including status such as whether test case or subcase completed, passed, failed, was aborted, etc.)\n",null,"All current revision information for all test scripts. These are stored in ClearCase. Should we delete this wording from the requirement? All TSW SI software current revision information. This is available through the TEE GUI. As well, on the LBCR you can run the “GET_SIRN” command. All test results (including status such as whether test case or subcase completed, passed, failed, was aborted, etc.)These are in the database.",null,null,null,null,null,null,null,null,"Save/\nEscape","Save/\nEscape"]
[3,"7.1.1.1",null,"(AC) Initial Setup - Confirm TSW Desktop Shortcuts: \nThis section produced  no data file. This reviewer witnessed  the test on 1-21-14, and on step 15, DR 3467 was written against the test procedure due to the installation fialed to start the engine as the WATLOW did not start. WATLOW is a thermal controller",null,"DR 3467 Still being adressed - \"In Work\""]
[4,"7.1.1.2",null,"(AC) - Confirm TSW Desktop Shortcuts:\nThis section produced  no data file. This reviewer witnessed  the test on 1-21-14, and on step 24, it failed to have the util TLM_Dashboard.exe (a Cat4 tool) being installed into the appropriate folder. Hence, it failed on creating the short cut for it. This tool is needed for check out the 1553 box.",null,"TLM Dashboard in C:\\Documents and Settings\\All Users\\Application Data\\ITT\\GPSIII\\Utility\\TLM_Dashboard currently exists, and can create shortcut. Does installer copy file from ClearCase Dir …\\Mite\\07_Integration_Testing\\Files\\GPSIII CAT4 Tools\\TLM Dashboard "]
[5,"7.1.1.2",null,"(AC) - Confirm TSW Desktop Shortcuts:\nThe second issue for this short cut failure in step 24 was that this TLM_Dashboard.exe was not packaged into the Util SIRN in the clearcase. Need SCM to bring in the official released SIRN items.  It was declared as not staged correctly.",null,"Need to confirm that Clearcase SIRN copy of Dashboard installs correctly and in proper location. Follow up with James."]
[6,"7.1.1.3",null,"(AC) Confirm SQL Server Management Studio is available on PC:\n This section produced  no data file. This reviewer witnessed  the test on 1-21-14. All steps under this section were fine.",null,"SQL Server Management Studio is installed on PC. Need to Discuss what artifacts or procedure needed for verifying."]
[7,"7.1.1.4",null,"(AC) Power On and Configuration Verification:\nPage 1 of the screen shot showed the SQL Querry12.sql, and page 2 has SQLQerry13.sql_MITE_CTR_1. The data base querry looked fine.",null,"Were Screeshots taken to update screen capture figure database?"]
[8,"7.1.1.5",null,"(AC) Record SIRN ID for the TSW being used for TSW SIQT:\nNo error, no warning, no incomplete found in any of these files",null,"SIRN ID was found by starting Test Executive. No scripts were ran. No report files generated"]
[9,"7.1.1.6",null,"(AC) Record and Confirm Test Directory (root) established for SIQT.\nThis section prodcued no data file for review.",null,"No Data is generated because no scripts are run. Directorys are created for proper file paths to copy to."]
[10,"7.1.1.7",null,"(AC) Configure MDU and STE to a \"Nominal\" operational state.\nThe two script result files, ITT_Debugg_ITE.log  and the XTSHistory were okay. Lines 9350-9356 in the file ITT_Debugging_MAR.log showed an INFO message that : ITT_Specific MDU 1553_MDU Normal TLM Bus Transaction Failure, status = DataNoResponse Error. Another message on line 10015: INFO ITT::SSD::Test Equipment::DI.USB DioBase::WriteChannel = Data = False",null,"Issue occurred while MDU was in shutdown state. This is a normal event when MDU_Power_OnOFF is running and occurs when ran."]
[11,"7.1.1.8",null,"(AC) Optional: Used during testing to do a Soft Reset to the MDU.\nThis section was not executed during this dry run",null,"This script runns Utility_MDU_Initilization. Since Previously, Utility_MDU_PowerOnOFF was run for Off and ON configurations, then Utility_MDU__Configuration was then ran. Therefore it was agreed Unecessary to run MDU Reinitilization. There were LCBR issues encountered in previous test case. I don't know why skipping this testcase wasnt document or put in the log."]
[12,"7.1.1.9",null,"(AC) Optional: Use for Restoring STE to a Nominal Test Execution Working State.\nThe bit map image showed failure in starting the test twice. Failure due to \"Could not find the file\"  SID1 and SID2 ScriptResult files showed no start time, and no end time.",null,"XTSschema.xsd was not loaded from clearcase directory 07_Integration_Testing\\Schemas into the Scripts directory at software load. File now exists. Need to check install procedure and see if it's getting loaded. Follow up with James"]
[13,"7.1.1.9",null,"(AC) Optional: Use for Restoring STE to a Nominal Test Execution Working State.\nThe scriptResult file showed no error, no unfinished. XTSHistory ok as well. The ITT_Debugging_ITE file line 3199 reported a failure in Execute Script Profile with unknown profile step \"Script\" ignored.  The AR log line 3582 has a  an INFO message that : ITT_Specific MDU 1553_MDU Normal TLM Bus Transaction Failure, and line 3862 has : INFO ITT::SSD::Test Equipment::DIO=USB DioBase::WriteChannel = Data = False",null,"Unknown profile Step Script\" issue is normal occurance during test run. This occurs when you are running a script and try to execute another one while the first script is running.   The engine ignores the  command.   Other issue, Issue occurred while MDU was in shutdown state. This is a normal event when MDU_Power_OnOFF is running and occurs when ran."]
[14,"7.1.1.9",null,"(AC) Optional: Use for Restoring STE to a Nominal Test Execution Working State.\nThis folder showed Engine Connection Failure",null,"ITE/AR connection Failure Action DR3469 underway."]
[15,"7.1.1.9",null,"(AC) Optional: Use for Restoring STE to a Nominal Test Execution Working State.\nThe scriptResult file showed no error, no unfinished. XTSHistory ok as well. For SID 7, The ITT_Debugging_ITE file line 8306  reported a failure in Execute Script Profile with unknown profile step \"Script\" ignored.  The MAR log line  7698  has a  an INFO message that : ITT_Specific MDU 1553_MDU Normal TLM Bus Transaction Failure, and line 3862 has : INFO ITT::SSD::Test Equipment::DIO=USB DioBase::WriteChannel = Data = False. Line 8352 showed a message for RESET_EIE_REQUEST (EIE  command flash called).",null,"unknown profile Step Script\" issue is normal occurance during test run. Other issue, Issue occurred while MDU was in shutdown state. This is a normal event when MDU_Power_OnOFF is running and occurs when ran."]
[16,"7.1.2.1.6",null,"(SG) TC02 - Log does not reflect test procedure steps regarding Spectrum Analyzer OFF/ON",null,"Need to comfirm that when Test Executive is stopped. Logging is interrupted. Therefore it cannot detect a transition of state of test equipement. Log does indicate the Current State of the insturment.  :  Test Procedure has been modified to reflect State Transition"]
[17,"7.1.2.3.2",null,"(SG) Step 839 Test Eval: The test could not be found in debug log.",null,"Test begins at 14:28:20 in \"ITT_Debugging_Mite_Mar_28.log1 and Ends At 14:45:17 in ITT_Debugging_Mite.log No errors detected between start and complete times. \na. Data was found in ITT_Debugging_MITE_MAR_28.log.1\nb. Please see screen shot attached.\n"]
[18,"7.1.2.3.11",null,"(SG) End of Test: Not clear from the log which prompt ran. All 3 prompts say STATUS_COMPLETE. Supposed to be only for prompt \"2\"?",null,"viewed log ITT_Debugging for SID43. Found \"Prompt 2\" @ 00:15:34/ Found \"Prompt 3\" @ 00:12:09. Found \"Prompt 1\" @ 00:07:35. a. Test Defines: the Engine can select a specific configuration as per the drop down in the\nb. ATP Window.  Test shows all prompts in different order as per the procedure requirements.  Prompt 1, 3, and then 2\n"]
[19,"7.1.2.4.1",null,"(SG) The saved logs do not reflect what is in the test procedure.",null,"Errors were logged in log. Per notes Ken Adam is investigating this. a. The test shows the Engine logs everything occurring, the “STOP” and then when ENGINE comes up it shows the steps required to start in the Log file.\n\n"]
[20,"7.1.2.6.1",null,"(SG) Debug log not available for Test steps 1354 and 1403.",null,"Bad Syntax scripts generate an empty Log. So It was agreed to not Capture empty Data Logs. Data was Captured for SID's 50, 51 and 60. Pertinent artifact data should be in Sid 60"]
[21,"7.1.2.8.4",null,"(SG) Step 1710 Debug log for time interval 6:16 to 6:23 missing.",null,"Log with comenensurate entries for script runs was indeed missing. Copied ITT_Debugging_Mite.log from TC3\\7.3.1.1\\SID_76_to_82 and copied it to the 7.1.1.8.4 directory as ITT_Debugging_Mite-1.log it contains the time gap and evidence of script runs."]
[22,null,null,"(SG) Willie & Roger were going to repeat the ITE calibration test (I don\"t remember the subcase SID18 and 19?)",null,"Subcase to re-run is 7.1.2.2.6 ITE Skip Calibration Manager on Expired Insturment. SID18 (only ran 1 script, procedure calls for 2)"]
[23,"7.1.3.3.4",null,"(SG)  TC03 - SFM_NEC was attempted multiple times. Two times it stopped at 20.1. Is 20.1 expected to pass in classified lab? Are there any other tests after 20.1 that should have run in the SW lab?",null,"7.1.3.3.4 SID This test fail on the script run. SID 117. This needs to be checked and Re-Ran. (a. The script completes at 20.1, this section puts everything back to original start state.  There is no other test after 20.1 this is the last section.  \n(b. We are receiving speratic failures in the Test.  New SIRN for EIE is built need DSS Security to allow hardware to be connected to STE to install new SIRN\n"]
[24,"7.1.3.6.2",null,"(JT) TC03, 7.1.3.6.2  1553_Black Bus – 4 Issues\nSID 158 (Utility_MDU_Power_OnOff.xts)\n• It appears that a shortcut was taken and Utility_MDU_Power_OnOff.xts was executed instead of Utility_MDU_ReInitialization.xts.  For formal SIQT, will the official script per the test procedure (Utility_MDU_ReInitialization.xts) be executed?  The XTSHistory shows the following warning:\n    Operator Advisories\nThis script is not intended as a replacement for the script MDU_Configuration, but rather as a faster stand-in when expediency of execution is valued over the thoroughness of the official script Utility_MDU_ReInitialization.xts.SID 159 (Utility_MDU_Power_OnOff.xts)\nSID 160 (Utility_MDU_ReInitialization.xts)\nSID 161 (TSW_SIQT_Test_1553_Sides.xts)\nNote:  Did not see a start and end time in ScriptResults file.\n\n",null,"Response. Per entry in Log Dated 1/24/2014 @ 20:54:34. “Chose to run reset of MDU due to previous test TC03, 7.1.4.3.7 (TSW.SIQT.MDU_X1_Epoch_Adjust failure) incomplete run. MDU was potentially in Uknown State.  Utility_MDU_Power_OnOff was run to power off, then Power up the MDU, MDU Reinitilization was Then run. SID’s 159 thru 162. ",null,null,null,null,null,null,null,null,"Save","Escape"]
[25,"7.1.3.6.2",null,"(JT) TC03, 7.1.3.6.2  1553_Black Bus – 4 Issues \nSID 162 (Utility_MDU_ReInitialization.xts)\n• ITT_Debugging_MAR:  Error DataStorage.DBCommon – AnalyzeFunctions.RecordAnalyzePoint().\nThe INSERT statement conflicted with the FOREIGN KEY constraint.\n• ITT_Debugging_MITE:  ERROR STE.SteBase – SteBase – Run XTS\nSystem Invalid Operation Exception: Queue Empty. . .SID 163 (TSW_SIQT_Test_1553_Sides.xts)\nNote:  Did not see a start and end time in ScriptResults file.\n\n",null,"Known issue. This appears to be an issue with the Test Set Software and the GPSIII Database on the network server. This issue sometimes presents itself when the server is performing software Backups. (will check with James)"]
[26,"7.1.3.6.2",null,"(JT) TC03, 7.1.3.6.2  1553_Black Bus – 4 Issues \nSID 164 (Utility_MDU_ReInitialization.xts)\n• ITT_Debugging_MAR:  Error DataStorage.DBCommon . . .\nThe INSERT statement conflicted with the FOREIGN KEY constraint. . . The conflict occurred in database “GPSIII”, table “dbo.Analyze” \n",null,"This appears to be an issue with the Test Set Software and the GPSIII Database on the network server. This issue sometimes presents itself when the server is performing software Backups. (will check with James)"]
[27,"7.1.3.6.1",null,"(JT) TC03, 7.1.3.6.1  Bus BDP cmd Transaction – 1 Issue \nSID 147 (MDU_NDS_BDP_Commands.xts)\n• ITT_Debugging_MAR:  Error DataStorage.DBCommon . . .\nThe INSERT statement conflicted with the FOREIGN KEY . . .\n",null,"This appears to be an issue with the Test Set Software and the GPSIII Database on the network server. This issue sometimes presents itself when the server is performing software Backups. (will check with James)"]
[28,"7.1.3.5.1",null,"(JT) TC03, 7.1.3.5.1  HPE Timing Signal – 2 Issues \nSID 147 (TSW_SIQT_MDU_HPE_Signals.xts)\n• XTSHistory:  CAL DATA IS NOT FACTORED IN THE DATABASE AT THIS TIME\n• ITT_Debugging_MITE:  CAL DATA IS NOT FACTORED IN THE DATABASE AT THIS TIME\n",null,"Please elaborate on the issue with this script. The “Cal Data…” entries are indeed in the logs."]
[29,"7.1.3.4.3",null,"(JT) TC03, 7.1.3.4.3  MDU TestBus – Aborted\nSID 141 (TSW_SIQT_MDU_Test_Bus.xts) – Aborted\n• ITT_Debugging_MITE:  Aborting all tests is true – Exiting\n• No ITT_Debugging_Mar log\n",null,"RedLine (-86) Delete Subcase (Pg 43 of 57 in procedure) Aborted Test due to Ste Rework Red bus DDC Pod Clear. (Pg 34 of 57)"]
[30,"7.1.3.4.2",null,"(JT) TC03, 7.1.3.4.2  TLM verification through the EGSE Ethernet Interface – Multiple Issues\nSID 128 (TSW_SIQT_TlmAnalog.xts)\n• ITT_Debugging_MAR:  Unable to write data to the transport connection; an existing connection was forcible closed by remote host\n• ITT_Debugging_MITE:  Aborting all tests is true- Exiting\n",null,"Response. Ref Test Step 759. MAR PC is Disconnected from network per procedure. MAR Disconnect causes failure of Telemetry stream. Capture and analysis of MDU data not possible at this part of test."]
[31,"7.1.3.4.2",null,"(JT) TC03, 7.1.3.4.2  TLM verification through the EGSE Ethernet Interface – Multiple Issues\nSID 129 (TSW_SIQT_TlmDiscrete.xts)\n• ScriptResults shows FAIL for MDUA_ON\n• XTSHistory:  Aborting all scripts due to analyze failure. . .Aborting all scripts due to an Abort All request\n• ITT_Debugging_MAR:  Unable to write data to the transport connection; an existing connection was forcible closed by remote host\n• ITT_Debugging_MITE:  Aborting all scripts due to an Analyze Failure\n",null,"Response. Ref Test Step 759. MAR PC is Disconnected from network per procedure. MAR Disconnect causes failure of Telemetry stream. Capture and analysis of MDU data not possible at this part of test."]
[32,"7.1.3.4.2",null,"(JT) TC03, 7.1.3.4.2  TLM verification through the EGSE Ethernet Interface – Multiple Issues\nSID 130 (TSW_SIQT_TlmSerial.xts)\n• ScriptResults shows FAIL for Stored Command Status\n• XTSHistory:  Aborting all scripts due to analyze failure. . .Aborting all scripts due to an Abort All request\n• ITT_Debugging_MAR:  Unable to write data to the transport connection; an existing connection was forcible closed by remote host\n• ITT_Debugging_MITE:  Aborting all scripts due to an Analyze Failure\n",null,"Response. Ref Test Step 759. MAR PC is Disconnected from network per procedure. MAR Disconnect causes failure of Telemetry stream. Capture and analysis of MDU data not possible at this part of test."]
[33,"7.1.3.4.2",null,"(JT) TC03, 7.1.3.4.2  TLM verification through the EGSE Ethernet Interface – Multiple Issues\nSID 131 (TSW_SIQT_TlmAnalog.xts)\n• ITT_Debugging_MITE:  No configuration was specified in run test script request. . .using default configuration\n",null,"Response. There is no Configuration setting for TSW_SIQT_TlmAnalog script."]
[34,"7.1.3.4.2",null,"(JT) TC03, 7.1.3.4.2  TLM verification through the EGSE Ethernet Interface – Multiple Issues\nSID 132 (TSW_SIQT_TlmDiscrete.xts)",null,"MDU was in shutdown state. This is a normal event when MDU_Power_OnOFF is running and occurs when ran."]
[35,"7.1.3.4.2",null,"(JT) TC03, 7.1.3.4.2  TLM verification through the EGSE Ethernet Interface – Multiple Issues\nSID 133 (TSW_SIQT_TlmSerial.xts)\n• ITT_Debugging_MAR:  Error – The INSERT statement conflicted with the FOREIGN key constraint. . . The conflict occurred in database “GPSIII”, table “dbo.Analyze”. . .The statement has been terminated\n",null,"This appears to be an issue with the Test Set Software and the GPSIII Database on the network server. This issue sometimes presents itself when the server is performing software Backups. (will check with James)"]
[36,"7.1.3.4.1",null,"(JT) TC03, 7.1.3.4.1  Telemetry – 1 Issue\nSID 124 (Utility_MDU_Power_OnOff.xts for Power Off)\nSID 125 (Utility_MDU_Power_OnOff.xts for Power On)\n",null,"What is issue?"]
[37,"7.1.3.4.1",null,"(JT) TC03, 7.1.3.4.1  Telemetry – 1 Issue\nSID 126 (Utility_MDU_ReInitialization.xts)\n• ITT_Debugging_MAR:  Error Data Storage DB Common – The INSERT statement conflicted with FOREIGN Key constraint. . .The statement has been terminated\nSID 127 (TSW_SIQT_MDU_Telemetry.xts)\n",null,"This appears to be an issue with the Test Set Software and the GPSIII Database on the network server. This issue sometimes presents itself when the server is performing software Backups. (will check with James)"]
[38,"7.1.3.1.1",null,"(AC) Power Supply Functions:\nThe scriptResult file showed no error, no unfinished. XTSHistory, ITT_Debugging_ITE files were good. ITT_Debugging_MAR log  line 5245   indicated a MDU Normal TLM Bus transcation failure.  And line 5792 showed Test Equipment DIO=USB DioBase= write channel = Data = False.",null,"unknown profile Step Script\" issue is normal occurance during test run. Other issue, Issue occurred while MDU was in shutdown state. This is a normal event when MDU_Power_OnOFF is running and occurs when ran."]
[39,"7.1.3.1.2",null,"(AC) Prime Power Outputs.\nAll these files were reviewed, and found no error, no issue, no exception.",null,"No Issue"]
[40,"7.1.3.2.1",null,"(AC) Total RF Power. All these files were reviewed, and found no error, no issue, no exception.",null,"No Issue"]
[41,"7.1.4.1.3",null,"(SG) TC04 - LBCR_SVID:\nThis was attempted multiple times. But the test didn't successfully complete on any of these tries. SID251 and SID275 failed at SVID 6. SID287 failed at SVID59",null,"Logs 200 thru 203 indicate failures of this test on MITE/MAR 1 Test set. This issue is being investigated."]
[42,"7.1.4.3.8",null,"(AC) Key Scheduler.\nIn ScriptResults file : Lines 597 and 697 expected 0 to pass, raw result = -4. Fail less than than low limit. All other files had no error, no exception, no issue.",null,"SID 2982, LCBR_Crypto_StartKeySchedule - Status (0=Pass) Raw Result= -4, Calibrated Measurment = -4, Spec 0/0. Per Julie...The procedure lists these failures as something that is expected.\nWhen looked at in conjunction with the procedure, this is a pass.\nThe script was written to look for 0 and is expected to fail with a -4.\nIf we want this to pass with a -4, then adjustments would need to be made to the script AND the procedure.\nI recommend we leave as is\n"]
[43,"7.1.4.3.2",null,"(AC) Xlink Transmit.\nScriptResults file: line 919 LBCR NDS Transmission Dectect raw =0, spec > 0. XTSHistory file line 6349 to have a GUI message of wait an additional 22 seconds to let the TLM Analysis Finish.  But on line 6350 indicated to wait <21000 ms>, and line 6114 ",null,"Recommend changing Gui message to 21 seconds in script. SID 2976 - Fail, SID2978 - Pass. Julie or Ken can fix this."]
[44,"7.1.4.3.2",null,"(AC) Xlink Transmit.\nThese two files are used to verify that the transmitted data matched to the script file for the data transmitted from the MDU to the EIE with IDD bypass disabled.  This reviewer confirmed that the input file matched with the output file for all 65 hops.",null,"No issue detected. Files - eie_nds_data_idd_hopping.xml and eie_slot_6_rpe3sp5f.vln"]
[45,"7.1.4.3.2",null,"(AC) Xlink Transmit.\nThe _AR file line 4346 has an error: Data Storage DBComm - The insert statement conflicted with the FOREIGN KEY constraint…. This error had many occurances in the file.",null,"Issue with SQL Server Synchronization. This appears to be an issue with the Test Set Software and the GPSIII Database on the network server. This issue sometimes presents itself when the server is performing software Backups. (will check with James)"]
[46,"7.1.4.3.2",null,"(AC) Xlink Transmit.\nThe log file line 2087 has a warning: LBCR Process NAV Message, NDS number incorrect (5), expected (0). Also, from lines 2175 to 2382 there were 208 mismatches from INFO: Safe Test Instrument LBCR compare Nav Message() mismatches at offset 144, 148, 154...",null,"Cannot ascertain which log file to refer to. Which Sid? Cannot find NDS Number Inccorrect (5) expected (2). Sid's 2976, 2977, 2978"]
[47,"7.1.4.2.3",null,"(AC) Out-of-Band Emissions.\nIn ScriptResults file : lines 385, 427, 469, 511… Each of the sweep test, raw value received =0, spec <0, why the result file considered them passed? All other data files looked fine, without error, warning, exception",null,"SID 2963. Raw Result =0, Cal factor N/A, Calibrated Measurment =0, Spec <0 . What does previous value mean?"]
[48,"7.1.4.3.1",null,"(AC) Non Standard Code.\nIn ScriptResults file : lines 1494 to 1522 this section is to command MDU to send all std code and verify. However, on line 1509 Non-std code status didn't see the code present. On line 1648 it was to set LBCR to correlate on std code. Did not see if the test was executed. No measurement, no message to confirm the test started. ",null,"Need to review script. TSW_SIQT_NPE_Non_Standard_Codes.xts \"Set lcbr to correlate on standard nodes is an execution not a test or analysis. Trying to understand this issue."]
[49,"7.1.4.3.3",null,"(AC) Cross Link Receive.\nIn ScriptResults file : lines 836 LBCR NDS transmit Detect, raw =0, spec >0. Line 863 NDS message copmare result 0 = no mismatches, raw value =6, is that allowed?  XTSHistory file line 9172 Issue output destination = GUI NDS_Message_Comparison_Result_High_limit set to 100 for TSW SIQT use due to the 8Hz Issue on OFU_B.  Will this high limit affect the validity of the test? In ITT_Debugging_ITE file, line 4568 has a warning:  LBCR Process NAV message number incorrect (264) expected (0).  Should that be an indication of failure of the test?",null,"The 8Hz problem is an issue with the ‘OFU_B’ on the panel.\nIf we get this test to run on a different platform (e.g., MM#3) we should be able to see better results.\n\n"]
[50,"7.1.4.1.4",null,"(AC) LBCR L-Band signals' correlation loss Data Acquisition Test.\n In the SrciptResults file, show the code power corr loss loop: 0 of 1 only.  ",null,"SID 2975. Should this read..\"Loop 1 of 1\" instead of Loop 0 of 1? I.E. change measurment name label?"]
[51,"7.1.4.1.2",null,"(AC) LBCR Verification - TTX.\nIn ScriptResults file : line 157 and 160 LBCR Tx start status (0=pass) raw=-4, spec =0. Line 1805 Verify L1CA Nav msg is equal to all 1's or all 0's  raw =0, spec >0. Same on lines 1814 and 1823. In the XSTHistory file line 3172 INFO: measurement -FAIL.  less than low limit. (2)  line 3331 FAIL greater than high limit (1)",null,"SID 2974. (1) Previous line in XTSHistory indicated \"LQ5 is a positive Fail\" (2) is this a loop for \"LBCRTX Start\"? And fails only because \"LBCRTXStart\" hasn’t yet started and needs to re-loop? We have a DR (3439) that relates to the occasional inability to command the TTX (using a COM port) from the ITE test engine.\nThe loop allows us to get past this by re-trying.\nWhen the DR is addressed the loop will no longer be needed\n"]
[52,"7.1.4.1.1.",null,"(AC) STE and LBCR set up.\nFailures occured at various points of the set up caused this test to have so many SIDs. There were operator aborts, adding manual monitor , and inserting recovery test scripts still failed. In SID 2947 Utility Setup Test line 146 of the ScriptResult showed a raw value of -4, pass is =0. ",null,"LBCR issues being mitigated by SW engineering staff.  Known issues with LBCR."]
[53,"7.1.4.1",null,"(AC) Staging.\nSIDs 2940 to 2943 had no start time, and no end time, which indicated they failed to start the test. SID 2944 had a failure due to TLM flow stopped and a message on Selected_secret_1553B_Primary Bus FAIL. 2946 had a selcted_secrte_1553B_Primary Bus_Scret greater than 1, expected =0",null,"Is this in the scope of the test requirements. "]
[54,"7.1.4.1.3",null,"(AC) LBCR SVID Test.\nIn the controller file, line 342 has a warning LBCR Rx start Succeeded, but with Errors. The same warning occurred in line 327, 530, 636, 667, 723, 868.  Also lines 652, 708, 841, 855 had warning LBCR Rx start - unable to start DAQ, FEP2 slices. Line 622 had a system service model - fault exception. Did not receive serial Z count (Fault details is equal to an exception detail likely created by Include Exception Details in Faults, whose value is \"Did not receive serial Z count\". at LBCR component.DAQ.NallatchCard Initialize Z count and Epoch 1).",null,"a. The LBCR hardware was not designed to stop and start 63 times.  Since we are exerting the hardware we received this error.  The errors are being investigated by the LBCR expert. "]
[55,"7.1.4.2.1",null,"(AC) Lband In-Band Emissions.In this file,  line 3249 restore spec Analyszer did not get started.",null,"Review MITE/MAR1 script results? SID195-199?. Or was this ran on other test set? Panel Lab, Mite/Mar3?"]
[56,"7.1.5.2.1",null,"(SG) TC05 - Following MDU Soft Reset Pulse command, is the script checking for Store command TLM#91 for QueueEnabled on (Xxxxxxxx2xxxxxx) before sending status queue enable SCMD command?",null,"Review MITE/MAR1 script results? SID195-199?. Or was this ran on other test set? Panel Lab, Mite/Mar3? This script DID Fail on MITE/MAR1 and is being reviewed and addressed. IF not need to check logs and SW on MITE/MAR3. a. Every command has its own unique TLM# 91. The script sends the command and then waits for that specific TLM bit to come down in the TLM#91 to confirm if the command work.   The question above is checked in the Utility_MDU_Power_OnOff.xts \nScript: \n<Output destination=\"GUI\" message=\"Enabling Status Queue\"/>\n    <Test name=\"Enable Status Queue\">\n      <UUT>\n        <TLM>\n          <AnalyzeSerial point=\"Stored_Command_Status\" criteria=\"Equal\" analysisduration=\"30000\"\n                         datamask=\"0000000020000000\" datavalue=\"0000000020000000\" requiredoccurances=\"-3\"/>\n        </TLM>\n        <Command name=\"MDU_SW_STATUS_QUEUE_ENABLE\"/>\n      </UUT>\n    </Test>\n"]

{"sheet":"Allowed Values","index":5,"n_rows":41,"n_cols":17,"rows_kept":41,"cut":false,"hidden":true,"merged":[]}
[{"$f":"COUNTA(A4:A100)","v":6},{"$f":"COUNTA(B4:B98)","v":4},{"$f":"COUNTA(C4:C106)","v":12},{"$f":"COUNTA(D4:D109)","v":15},{"$f":"COUNTA(E4:E99)","v":8},{"$f":"COUNTA(F5:F101)","v":10},null,{"$f":"COUNTA(H4:H112)","v":24},null,{"$f":"COUNTA(J4:J100)","v":4},{"$f":"COUNTA(K4:K100)","v":13},null,null,{"$f":"COUNTA(N4:N101)","v":38}]
["AV_Review_Type","AV_Meeting_Type","AV_Team","AV_Team","AV_Element","AV_Milestone",null,"AV_Process",null,"AV_Block","AV_Major_Prod",null,null,"AV_Product_Type"]
["Review Type","Meeting Type","Program_Team","IPT_Team","Element","SSC Phase","SSC Phase - full","Program Process","Program Phase - full","Block","Major Product Types","Sizes","Not Used","Minor Product Types","Mapping to \nMajor Product","Units","Help"]
["Select","Select","Select","AI&T","Select","Select","Select","Select","Select","Select","N/A","N/A","END","Select","Select","none"," "]
["Peer Review","Initial","AI&T","Bus Ops","All GPS III","SRR","System Requirements Review (SRR) (System Requirements)","Plan","Project Planning & Oversighr","IIIA","Architecture","Pages/Diagrams",null,"Architectural Views","Architecture",{"$f":"VLOOKUP(O5,K$4:L$16,2,0)","v":"Pages/Diagrams"},"New = new and modified work\nReuse = reuse from another program or increment\nAutogen = tool generated items / reports"]
["CCB","Second Try","Bus Ops","CE","Antenna","SDR","System Design Review (SDR) (System Design)","Envir","Establish environment","IIIB","Code","SLOC",null,"A-Spec","Requirements","Requirements","New = new and modified work\nReuse = reuse from another program or increment\nAutogen = tool generated items / reports"]
["ERB - GPS III ","Maintenance","CE","Customer","Bus","PDR","Preliminary Design Review (PDR) (Preliminary Design)","SRA","Systems Requirement Analysis","IIIC","Critical Methods","Pages/Diagrams",null,"Element Spec","Requirements","Requirements","New = new and modified work\nReuse = reuse from another program or increment\nAutogen = tool generated items / reports"]
["ERB - IPT level",null,"SEIT","HPE (Hosted Payloads Element)","Communication","CDR","Critical Design Review (CDR) (Detailed Design)","SD","System Design",null,"Hardware","Pages/Diagrams",null,"ICD Specification","Requirements","Requirements","New = new and modified work\nReuse = reuse from another program or increment\nAutogen = tool generated items / reports"]
["SCCB",null,"SSIS","LOS (Launch Ops Support)","Navigation","TRR","Test Readiness Review (TRR) (Assembly and Integration)","SWRA","Software Requirements Analysis",null,"Documentation","Pages/Diagrams",null,"Sub-system Spec","Requirements","Requirements","New = new and modified work\nReuse = reuse from another program or increment\nAutogen = tool generated items / reports"]
[null,null,"SV-All areas","PMO","Data & GDBS","FCA"," Functional Configuration Audit (FCA) (Verification)","HWRA","Hardware Requirements Analysis",null,"Requirements","Requirements",null,"Software Requirements Specification (SRS)","Requirements","Requirements","New = new and modified work\nReuse = reuse from another program or increment\nAutogen = tool generated items / reports"]
[null,null,"SV-Antenna","SEIT","Simulators","IOC"," Initial Operating Capability (IOC) (Deployment)","SWD","Softwre Design",null,"SW Design","Pages/Diagrams",null,"Code","Code","SLOC","New = new and modified work\nReuse = reuse from another program or increment\nAutogen = tool generated items / reports"]
[null,null,"SV-Bus","SSIS",null,"Ops","End of Operational Program (Operations and Support)","HWD","Hardware Design",null,"Test Plans","Pages/Diagrams",null,"COTS","N/A","N/A","New = new and modified work\nReuse = reuse from another program or increment\nAutogen = tool generated items / reports"]
[null,null,"SV-Comm","SV",null,"Disp","Disposal (Program Closeout)","IUT","Implementation & Unit Test",null,"Test Procedures","Pages/Diagrams",null,"Critical Methods","Critical Methods","Pages/Diagrams","New = new and modified work\nReuse = reuse from another program or increment\nAutogen = tool generated items / reports"]
[null,null,"SV-Nav","SV-Antenna",null,null,null,"SIQT","Software item Qualification testing",null,"Test Results","SLOC",null,"ICD Drawings","Documentation","Pages/Diagrams","New = new and modified work\nReuse = reuse from another program or increment\nAutogen = tool generated items / reports"]
[null,null,"SWDI","SV-Bus",null,null,null,"HIQT","Hardware item Qualification testing",null,"Training Docs","Pages/Diagrams",null,"Documentation","Documentation","Pages/Diagrams","New = new and modified work\nReuse = reuse from another program or increment\nAutogen = tool generated items / reports"]
[null,null,null,"SV-Comm",null,null,null,"IT","Software/Hardware Item Integration & Test",null,"END","END",null,"Interface Requirements Specification (IRS)","Requirements","Requirements","New = new and modified work\nReuse = reuse from another program or increment\nAutogen = tool generated items / reports"]
[null,null,null,"SV-Nav",null,null,null,"SQT","System Qualification test",null,null,null,null,"Executable View","Architecture","Pages/Diagrams","New = new and modified work\nReuse = reuse from another program or increment\nAutogen = tool generated items / reports"]
[null,null,null,"SWDI",null,null,null,"Ops","Transition to Ops",null,null,null,null,"Hardware","Hardware","Pages/Diagrams","New = new and modified work\nReuse = reuse from another program or increment\nAutogen = tool generated items / reports"]
[null,null,null,null,null,null,null,"Maint","Tansition to Maintenance",null,null,null,null,"Operational Procedure","Documentation","Pages/Diagrams","New = new and modified work\nReuse = reuse from another program or increment\nAutogen = tool generated items / reports"]
[null,null,null,null,null,null,null,null,null,null,null,null,null,"Other","N/A","N/A","New = new and modified work\nReuse = reuse from another program or increment\nAutogen = tool generated items / reports"]
[null,null,null,null,null,null,null,null,null,null,null,null,null,"Performance Model","Architecture","Pages/Diagrams","New = new and modified work\nReuse = reuse from another program or increment\nAutogen = tool generated items / reports"]
[null,null,null,null,null,null,null,null,null,null,null,null,null,"Physical Data Model","Architecture","Pages/Diagrams","New = new and modified work\nReuse = reuse from another program or increment\nAutogen = tool generated items / reports"]
[null,null,null,null,null,null,null,null,null,null,null,null,null,"Process Management View","Architecture","Pages/Diagrams","New = new and modified work\nReuse = reuse from another program or increment\nAutogen = tool generated items / reports"]
[null,null,null,null,null,null,{"$f":"H24&H25&H26&H27&G28","v":"Plan      Project Planning & Oversighr\nEnvir     Establish environment\nSRA     Systems Requirement Analysis\nSD       System Design\nSWRA  Software Requirements Analysis\nHWRA   Hardware Requirements Analysis\nSWD     Softwre Design\nHWD     Hardware Design\nIUT        Implementation & Unit Test\nSIQT     Software item Qualification Testing\nHIQT     Hardware item Qualification Testing\nIT          Hardware/Software Item Integration & Test\nSQT      System Qualification test\nOps      Transition to Ops\nMaint   Tansition to MaintenanceSRA   Systems Requirement AnalysisSD   System DesignSWRA   Software Requirements AnalysisHWRA   Hardware Requirements AnalysisSWD   Softwre DesignHWD   Hardware DesignIUT   Implementation & Unit TestSIQT   Software item Qualification testingHIQT   Hardware item Qualification testingSHIT   Software/Hardware Item Integration & TestSQT   System Qualification testOps   Transition to OpsMaint   Tansition to Maintenance"},"Plan      Project Planning & Oversighr\nEnvir     Establish environment\nSRA     Systems Requirement Analysis\nSD       System Design\nSWRA  Software Requirements Analysis\nHWRA   Hardware Requirements Analysis\nSWD     Softwre Design\nHWD     Hardware Design\nIUT        Implementation & Unit Test\nSIQT     Software item Qualification Testing\nHIQT     Hardware item Qualification Testing\nIT          Hardware/Software Item Integration & Test\nSQT      System Qualification test\nOps      Transition to Ops\nMaint   Tansition to Maintenance",null,null,null,null,null,"Product Contract","Architecture","Pages/Diagrams","New = new and modified work\nReuse = reuse from another program or increment\nAutogen = tool generated items / reports"]
[null,null,null,null,null,null,null,null,null,null,null,null,null,"Requirements","Requirements","Requirements","New = new and modified work\nReuse = reuse from another program or increment\nAutogen = tool generated items / reports"]
[null,null,null,null,null," ",null,"SRA   Systems Requirement AnalysisSD   System DesignSWRA   Software Requirements AnalysisHWRA   Hardware Requirements AnalysisSWD   Softwre DesignHWD   Hardware DesignIUT   Implementation & Unit TestSIQT   Software item Qualification testingHIQT   Hardware item Qualification testingSHIT   Software/Hardware Item Integration & TestSQT   System Qualification testOps   Transition to OpsMaint   Tansition to Maintenance",null,null,null,null,null,"Reuse","N/A","N/A","New = new and modified work\nReuse = reuse from another program or increment\nAutogen = tool generated items / reports"]
[null,null,null,null,null,null,null,null,null,null,null,null,null,"Scenario View","Architecture","Pages/Diagrams","New = new and modified work\nReuse = reuse from another program or increment\nAutogen = tool generated items / reports"]
[null,null,null,null,null,null,null,"SWRA   Software Requirements AnalysisHWRA   Hardware Requirements AnalysisSWD   Softwre DesignHWD   Hardware DesignIUT   Implementation & Unit TestSIQT   Software item Qualification testingHIQT   Hardware item Qualification testingSHIT   Software/Hardware Item Integration & TestSQT   System Qualification testOps   Transition to OpsMaint   Tansition to Maintenance",null,null,null,null,null,"Scripts/SQL","N/A","SLOC","New = new and modified work\nReuse = reuse from another program or increment\nAutogen = tool generated items / reports"]
[null,null,null,null,null,null,null,null,null,null,null,null,null,"Security View","Architecture",{"$f":"VLOOKUP(O29,K$4:L$16,2,0)","v":"Pages/Diagrams"},"New = new and modified work\nReuse = reuse from another program or increment\nAutogen = tool generated items / reports"]
[null,null,null,null,null,null,null,"SWD   Softwre DesignHWD   Hardware DesignIUT   Implementation & Unit TestSIQT   Software item Qualification testingHIQT   Hardware item Qualification testingSHIT   Software/Hardware Item Integration & TestSQT   System Qualification testOps   Transition to OpsMaint   Tansition to Maintenance",null,null,null,null,null,"Software Manuals","Documentation","Pages/Diagrams","New = new and modified work\nReuse = reuse from another program or increment\nAutogen = tool generated items / reports"]
[null,null,null,null,null,null,null,null,null,null,null,null,null,"State Transition View","Architecture","Pages/Diagrams","New = new and modified work\nReuse = reuse from another program or increment\nAutogen = tool generated items / reports"]
[null,null,null,null,null,null,null,"IUT   Implementation & Unit TestSIQT   Software item Qualification testingHIQT   Hardware item Qualification testingSHIT   Software/Hardware Item Integration & TestSQT   System Qualification testOps   Transition to OpsMaint   Tansition to Maintenance",null,null,null,null,null,"SW Design","SW Design","Pages/Diagrams","New = new and modified work\nReuse = reuse from another program or increment\nAutogen = tool generated items / reports"]
[null,null,null,null,null,null,null,null,null,null,null,null,null,"System Management View","Architecture","Pages/Diagrams","New = new and modified work\nReuse = reuse from another program or increment\nAutogen = tool generated items / reports"]
[null,null,null,null,null,null,null,"HIQT   Hardware item Qualification testingSHIT   Software/Hardware Item Integration & TestSQT   System Qualification testOps   Transition to OpsMaint   Tansition to Maintenance",null,null,null,null,null,"Software Test Plan (STP)","Test Plans","Pages/Diagrams","New = new and modified work\nReuse = reuse from another program or increment\nAutogen = tool generated items / reports"]
[null,null,null,null,null,null,null,null,null,null,null,null,null,"Software Test Description (STD)","Test Procedures","Pages/Diagrams","New = new and modified work\nReuse = reuse from another program or increment\nAutogen = tool generated items / reports"]
[null,null,null,null,null,null,null,"SQT   System Qualification testOps   Transition to OpsMaint   Tansition to Maintenance",null,null,null,null,null,"Software Test Report (STR)","Test Results","SLOC","New = new and modified work\nReuse = reuse from another program or increment\nAutogen = tool generated items / reports"]
[null,null,null,null,null,null,null,null,null,null,null,null,null,"SW Plans; e.g. SDP, SQMP, SMBP","Documentation","Pages/Diagrams","New = new and modified work\nReuse = reuse from another program or increment\nAutogen = tool generated items / reports"]
[null,null,null,null,null,null,null,"Maint   Tansition to Maintenance",null,null,null,null,null,"Tools","N/A","N/A","END"]
[null,null,null,null,null,null,null,null,null,null,null,null,null,"Unit Test Review","Documentation","Pages/Diagrams"]
[null,null,null,null,null,null,null,null,null,null,null,null,null,"User View","Architecture",{"$f":"VLOOKUP(O40,K$4:L$16,2,0)","v":"Pages/Diagrams"}]
[null,null,null,null,null,null,null,null,null,null,null,null,null,"END","END","END"]

{"sheet":"Sheet1","index":6,"n_rows":0,"n_cols":0,"rows_kept":0,"cut":false,"hidden":false,"merged":[]}